[Event "Early-Titled-Tuesday-Blitz-July-09-2024"]
[Site "Chess.com"]
[Date "2024.07.09"]
[Round "2"]
[White "IsuruAlahakoon"]
[Black "kritipatel"]
[Result "0-1"]
[WhiteElo "2431"]
[BlackElo "2145"]
[TimeControl "180+1"]
[EndTime "8:17:56 PDT"]
[Termination "kritipatel won on time"]

1. Nf3 {[%clk 0:03:00.9]} 1... d5 {[%clk 0:02:59]} 2. e3 {[%clk 0:03:00.6]} 2...
Nf6 {[%clk 0:02:59.4]} 3. b3 {[%clk 0:03:00]} 3... e6 {[%clk 0:02:59]} 4. Bb2
{[%clk 0:03:00]} 4... c5 {[%clk 0:02:59.6]} 5. c4 {[%clk 0:02:59.3]} 5... Nc6
{[%clk 0:02:59.4]} 6. cxd5 {[%clk 0:02:58.2]} 6... exd5 {[%clk 0:02:59.4]} 7.
Nc3 {[%clk 0:02:58.7]} 7... Be7 {[%clk 0:02:59.4]} 8. Rc1 {[%clk 0:02:56]} 8...
O-O {[%clk 0:02:55.4]} 9. d4 {[%clk 0:02:55.7]} 9... cxd4 {[%clk 0:02:53.2]} 10.
Nxd4 {[%clk 0:02:55.4]} 10... Nxd4 {[%clk 0:02:51.4]} 11. Qxd4 {[%clk
0:02:55.3]} 11... Be6 {[%clk 0:02:48.6]} 12. Be2 {[%clk 0:02:54.2]} 12... a6
{[%clk 0:02:35.1]} 13. O-O {[%clk 0:02:53.8]} 13... Rc8 {[%clk 0:02:35.2]} 14.
h3 {[%clk 0:02:50.7]} 14... Bc5 {[%clk 0:02:34.6]} 15. Qh4 {[%clk 0:02:48.2]}
15... Be7 {[%clk 0:02:34]} 16. Qd4 {[%clk 0:02:26.6]} 16... Bc5 {[%clk
0:02:33.2]} 17. Qd1 {[%clk 0:02:20]} 17... Qd7 {[%clk 0:02:25.6]} 18. Bf3 {[%clk
0:02:18]} 18... Rfd8 {[%clk 0:02:24.5]} 19. Ne2 {[%clk 0:02:11.5]} 19... Be7
{[%clk 0:01:59.9]} 20. Rxc8 {[%clk 0:02:10.2]} 20... Qxc8 {[%clk 0:01:59.7]} 21.
Nf4 {[%clk 0:02:08]} 21... Ne4 {[%clk 0:01:52.4]} 22. Nxe6 {[%clk 0:01:43.7]}
22... Qxe6 {[%clk 0:01:48]} 23. Bg4 {[%clk 0:01:43.3]} 23... Qg6 {[%clk
0:01:44.4]} 24. f4 {[%clk 0:01:39.3]} 24... f5 {[%clk 0:01:23.9]} 25. Bh5 {[%clk
0:01:34.9]} 25... Qb6 {[%clk 0:01:15.6]} 26. Bd4 {[%clk 0:01:33.9]} 26... Bc5
{[%clk 0:01:12.6]} 27. Bxc5 {[%clk 0:01:27.6]} 27... Qxc5 {[%clk 0:01:11.1]} 28.
Qc1 {[%clk 0:01:28.1]} 28... Qe7 {[%clk 0:00:43.8]} 29. Bf3 {[%clk 0:01:19.2]}
29... Qh4 {[%clk 0:00:33.3]} 30. Qe1 {[%clk 0:01:07.9]} 30... Qe7 {[%clk
0:00:31.8]} 31. Qa5 {[%clk 0:01:06.1]} 31... h6 {[%clk 0:00:29.1]} 32. Rc1
{[%clk 0:01:05.2]} 32... Ng3 {[%clk 0:00:21.4]} 33. Rc7 {[%clk 0:01:01.7]} 33...
Qxe3+ {[%clk 0:00:20.4]} 34. Kh2 {[%clk 0:01:00.7]} 34... Nf1+ {[%clk
0:00:19.6]} 35. Kh1 {[%clk 0:01:00.7]} 35... Ng3+ {[%clk 0:00:17.3]} 36. Kh2
{[%clk 0:01:00.6]} 36... Nf1+ {[%clk 0:00:16.3]} 37. Kh1 {[%clk 0:01:00.6]}
37... Qxf4 {[%clk 0:00:16.7]} 38. Kg1 {[%clk 0:00:52.2]} 38... Ng3 {[%clk
0:00:16.7]} 39. Qc3 {[%clk 0:00:47.1]} 39... Qg5 {[%clk 0:00:14.5]} 40. Qe5
{[%clk 0:00:42.4]} 40... Ne4 {[%clk 0:00:13.7]} 41. Qe6+ {[%clk 0:00:34.5]}
41... Kh7 {[%clk 0:00:13.3]} 42. Qb6 {[%clk 0:00:17.6]} 42... d4 {[%clk
0:00:10.7]} 43. Rxb7 {[%clk 0:00:05]} 43... d3 {[%clk 0:00:10.2]} 0-1

[Event "Early-Titled-Tuesday-Blitz-July-09-2024"]
[Site "Chess.com"]
[Date "2024.07.09"]
[Round "2"]
[White "Shuvalov"]
[Black "Arysya"]
[Result "0-1"]
[WhiteElo "2595"]
[BlackElo "2870"]
[TimeControl "180+1"]
[EndTime "8:17:58 PDT"]
[Termination "Arysya won on time"]

1. c4 {[%clk 0:03:00.9]} 1... g6 {[%clk 0:02:37.9]} 2. d4 {[%clk 0:03:00]} 2...
Bg7 {[%clk 0:02:37.9]} 3. e4 {[%clk 0:03:00]} 3... c5 {[%clk 0:02:35.4]} 4. d5
{[%clk 0:02:57.5]} 4... d6 {[%clk 0:02:32.8]} 5. h3 {[%clk 0:02:56.5]} 5... b5
{[%clk 0:02:28.4]} 6. cxb5 {[%clk 0:02:51.1]} 6... a6 {[%clk 0:02:28.2]} 7. Nf3
{[%clk 0:02:47.4]} 7... Nf6 {[%clk 0:02:23.6]} 8. Nc3 {[%clk 0:02:46.5]} 8...
O-O {[%clk 0:02:23.2]} 9. a4 {[%clk 0:02:45.4]} 9... Ne8 {[%clk 0:02:13.3]} 10.
Bd2 {[%clk 0:02:42.3]} 10... h6 {[%clk 0:02:07.7]} 11. Bc4 {[%clk 0:02:34.2]}
11... Nd7 {[%clk 0:02:05]} 12. bxa6 {[%clk 0:02:26.8]} 12... Bxa6 {[%clk
0:01:58.4]} 13. Bb5 {[%clk 0:02:24.2]} 13... Nc7 {[%clk 0:01:56.4]} 14. Bxa6
{[%clk 0:02:07.4]} 14... Nxa6 {[%clk 0:01:46.9]} 15. O-O {[%clk 0:02:06.8]}
15... Qb6 {[%clk 0:01:43]} 16. Nb5 {[%clk 0:01:54.9]} 16... Kh7 {[%clk
0:01:09.3]} 17. Bc3 {[%clk 0:01:53.4]} 17... Nf6 {[%clk 0:01:09.2]} 18. Nd2
{[%clk 0:01:51.5]} 18... Qb8 {[%clk 0:00:55.6]} 19. Qe2 {[%clk 0:01:45]} 19...
Nc7 {[%clk 0:00:55.2]} 20. Nxc7 {[%clk 0:01:40.6]} 20... Qxc7 {[%clk 0:00:56.1]}
21. Nc4 {[%clk 0:01:37.4]} 21... Rfb8 {[%clk 0:00:55]} 22. a5 {[%clk 0:01:32.2]}
22... Nd7 {[%clk 0:00:54.4]} 23. f4 {[%clk 0:01:23]} 23... Rb3 {[%clk
0:00:51.7]} 24. e5 {[%clk 0:01:13]} 24... Kg8 {[%clk 0:00:24.7]} 25. Rae1 {[%clk
0:01:01.5]} 25... Qb7 {[%clk 0:00:20.5]} 26. e6 {[%clk 0:00:56.7]} 26... Nf6
{[%clk 0:00:20.2]} 27. exf7+ {[%clk 0:00:56.2]} 27... Kf8 {[%clk 0:00:20.6]} 28.
Nb6 {[%clk 0:00:46.9]} 28... Ra7 {[%clk 0:00:20.5]} 29. Qc4 {[%clk 0:00:41.9]}
29... Rxc3 {[%clk 0:00:12.9]} 30. bxc3 {[%clk 0:00:42.8]} 30... Rxa5 {[%clk
0:00:13.4]} 31. Rb1 {[%clk 0:00:38.4]} 31... Qa7 {[%clk 0:00:14.1]} 32. Kh2
{[%clk 0:00:29.1]} 32... Ra3 {[%clk 0:00:13.8]} 33. Rfe1 {[%clk 0:00:20.9]}
33... Rxc3 {[%clk 0:00:13.9]} 34. Qb5 {[%clk 0:00:18.4]} 34... Qc7 {[%clk
0:00:14.3]} 35. Qa5 {[%clk 0:00:15.8]} 35... Kxf7 {[%clk 0:00:12.9]} 36. Qa8
{[%clk 0:00:12.7]} 36... g5 {[%clk 0:00:09.4]} 37. fxg5 {[%clk 0:00:12.3]} 37...
hxg5 {[%clk 0:00:10.3]} 38. Rf1 {[%clk 0:00:12.5]} 38... Kg6 {[%clk 0:00:09.9]}
39. Rbe1 {[%clk 0:00:11.5]} 39... Qxb6 {[%clk 0:00:09.5]} 40. Rxe7 {[%clk
0:00:11.1]} 40... Qb5 {[%clk 0:00:08]} 41. Rxf6+ {[%clk 0:00:09.6]} 41... Kxf6
{[%clk 0:00:06.2]} 42. Qd8 {[%clk 0:00:06.1]} 42... Kg6 {[%clk 0:00:04.2]} 43.
Qg8 {[%clk 0:00:05.5]} 43... Qd3 {[%clk 0:00:01.9]} 44. Qxg7+ {[%clk 0:00:04.9]}
44... Kf5 {[%clk 0:00:02.4]} 45. Qh7+ {[%clk 0:00:02.2]} 45... Kf4 {[%clk
0:00:01.7]} 0-1

[Event "Early-Titled-Tuesday-Blitz-July-09-2024"]
[Site "Chess.com"]
[Date "2024.07.09"]
[Round "2"]
[White "PapiPapita"]
[Black "Didici"]
[Result "0-1"]
[WhiteElo "2502"]
[BlackElo "2753"]
[TimeControl "180+1"]
[EndTime "8:17:58 PDT"]
[Termination "Didici won on time"]

1. c4 {[%clk 0:02:55.5]} 1... b6 {[%clk 0:02:58.1]} 2. e4 {[%clk 0:02:52.4]}
2... Bb7 {[%clk 0:02:58.2]} 3. Nc3 {[%clk 0:02:52.9]} 3... e6 {[%clk 0:02:58.9]}
4. Qe2 {[%clk 0:02:53]} 4... c5 {[%clk 0:02:54.3]} 5. g3 {[%clk 0:02:48.8]} 5...
g6 {[%clk 0:02:52.6]} 6. Bg2 {[%clk 0:02:49]} 6... Bg7 {[%clk 0:02:53]} 7. Nf3
{[%clk 0:02:47.7]} 7... d6 {[%clk 0:02:50.4]} 8. O-O {[%clk 0:02:47.9]} 8... Nc6
{[%clk 0:02:49.7]} 9. d3 {[%clk 0:02:36.6]} 9... Nge7 {[%clk 0:02:45.1]} 10. h4
{[%clk 0:02:35.8]} 10... h6 {[%clk 0:02:44.5]} 11. Bd2 {[%clk 0:02:34.3]} 11...
Qd7 {[%clk 0:02:37.9]} 12. a3 {[%clk 0:02:34]} 12... f5 {[%clk 0:02:31.2]} 13.
Rfe1 {[%clk 0:02:10.4]} 13... e5 {[%clk 0:02:17.3]} 14. h5 {[%clk 0:02:03.1]}
14... g5 {[%clk 0:02:12.9]} 15. exf5 {[%clk 0:02:00.7]} 15... Qxf5 {[%clk
0:01:58.6]} 16. b4 {[%clk 0:01:45.7]} 16... O-O {[%clk 0:00:55.7]} 17. b5 {[%clk
0:01:23.2]} 17... Nd8 {[%clk 0:00:55.5]} 18. Nh2 {[%clk 0:01:11.6]} 18... Bxg2
{[%clk 0:00:54.1]} 19. Kxg2 {[%clk 0:01:12.5]} 19... Ne6 {[%clk 0:00:53.8]} 20.
Be3 {[%clk 0:01:10.4]} 20... Rad8 {[%clk 0:00:39]} 21. Qg4 {[%clk 0:00:30.2]}
21... d5 {[%clk 0:00:37.7]} 22. Qxf5 {[%clk 0:00:27.7]} 22... Rxf5 {[%clk
0:00:38.6]} 23. cxd5 {[%clk 0:00:24.1]} 23... Nxd5 {[%clk 0:00:39.5]} 24. Nxd5
{[%clk 0:00:24.4]} 24... Rxd5 {[%clk 0:00:39.9]} 25. Rad1 {[%clk 0:00:25]} 25...
Rf7 {[%clk 0:00:38.3]} 26. Kf1 {[%clk 0:00:21.8]} 26... Rfd7 {[%clk 0:00:34.9]}
27. Ke2 {[%clk 0:00:21.5]} 27... a6 {[%clk 0:00:33.7]} 28. a4 {[%clk 0:00:22]}
28... axb5 {[%clk 0:00:33.6]} 29. axb5 {[%clk 0:00:19.8]} 29... Nc7 {[%clk
0:00:33.7]} 30. Kf3 {[%clk 0:00:04.7]} 30... Nxb5 {[%clk 0:00:33.2]} 31. Rb1
{[%clk 0:00:04.6]} 31... Nc3 {[%clk 0:00:26.1]} 32. Rxb6 {[%clk 0:00:05.2]}
32... Rxd3 {[%clk 0:00:26.6]} 33. Kg2 {[%clk 0:00:05.3]} 33... Rc7 {[%clk
0:00:16.1]} 34. Ng4 {[%clk 0:00:05.3]} 34... Nd5 {[%clk 0:00:16]} 35. Rb8+
{[%clk 0:00:04.9]} 35... Kh7 {[%clk 0:00:16]} 36. Bc1 {[%clk 0:00:04.3]} 36...
c4 {[%clk 0:00:16.1]} 37. Nxe5 {[%clk 0:00:04.3]} 37... Bxe5 {[%clk 0:00:15.4]}
38. Rxe5 {[%clk 0:00:05.2]} 38... c3 {[%clk 0:00:16.1]} 39. Rd8 {[%clk 0:00:04]}
39... Nb4 {[%clk 0:00:15]} 40. Rb8 {[%clk 0:00:02]} 40... Na2 {[%clk 0:00:14.4]}
41. Ba3 {[%clk 0:00:01.4]} 41... Kg7 {[%clk 0:00:10.7]} 42. Re6 {[%clk
0:00:01.6]} 42... Kf7 {[%clk 0:00:10.6]} 43. Rxh6 {[%clk 0:00:01.8]} 43... Rdd7
{[%clk 0:00:09.7]} 44. Rbh8 {[%clk 0:00:01]} 44... Re7 {[%clk 0:00:02.4]} 0-1

[Event "Early-Titled-Tuesday-Blitz-July-09-2024"]
[Site "Chess.com"]
[Date "2024.07.09"]
[Round "2"]
[White "JavierRuizVazquez"]
[Black "GelmanAlexander"]
[Result "0-1"]
[WhiteElo "2390"]
[BlackElo "2723"]
[TimeControl "180+1"]
[EndTime "8:18:02 PDT"]
[Termination "GelmanAlexander won by resignation"]

1. e4 {[%clk 0:03:00.9]} 1... c5 {[%clk 0:02:59.6]} 2. Nc3 {[%clk 0:03:00.9]}
2... e6 {[%clk 0:03:00]} 3. d4 {[%clk 0:02:58.6]} 3... cxd4 {[%clk 0:02:59.7]}
4. Qxd4 {[%clk 0:02:59.5]} 4... Nc6 {[%clk 0:02:59.1]} 5. Qd2 {[%clk 0:02:59.9]}
5... a6 {[%clk 0:02:52.8]} 6. b3 {[%clk 0:02:58.1]} 6... b5 {[%clk 0:02:53]} 7.
Bb2 {[%clk 0:02:56]} 7... Bb7 {[%clk 0:02:53.3]} 8. O-O-O {[%clk 0:02:54.8]}
8... Nf6 {[%clk 0:02:47.6]} 9. f3 {[%clk 0:02:54.3]} 9... Rc8 {[%clk 0:02:44.5]}
10. Kb1 {[%clk 0:02:41.5]} 10... h5 {[%clk 0:02:43.1]} 11. Nge2 {[%clk
0:02:21.9]} 11... Bb4 {[%clk 0:02:42.3]} 12. a3 {[%clk 0:02:16.1]} 12... Be7
{[%clk 0:02:39.3]} 13. Nd4 {[%clk 0:02:07.1]} 13... b4 {[%clk 0:02:36.5]} 14.
axb4 {[%clk 0:02:03.7]} 14... Bxb4 {[%clk 0:02:36.7]} 15. Nxc6 {[%clk
0:02:03.1]} 15... Rxc6 {[%clk 0:02:35.3]} 16. Qd4 {[%clk 0:01:56.8]} 16... Qa5
{[%clk 0:02:14.6]} 17. Na4 {[%clk 0:01:30.5]} 17... O-O {[%clk 0:02:11.3]} 18.
Bd3 {[%clk 0:01:12.2]} 18... Rfc8 {[%clk 0:02:02.2]} 19. g4 {[%clk 0:00:50.5]}
19... hxg4 {[%clk 0:02:00.7]} 20. Rhg1 {[%clk 0:00:47.2]} 20... Bf8 {[%clk
0:01:37.6]} 21. Qe3 {[%clk 0:00:32.4]} 21... d5 {[%clk 0:01:21.5]} 22. Bxf6
{[%clk 0:00:29.2]} 22... dxe4 {[%clk 0:01:08.8]} 23. Qxe4 {[%clk 0:00:28.2]}
23... Qf5 {[%clk 0:00:55]} 24. Qxf5 {[%clk 0:00:20.4]} 24... exf5 {[%clk
0:00:55.1]} 25. Bb2 {[%clk 0:00:21]} 25... gxf3 {[%clk 0:00:49.9]} 26. Bxf5
{[%clk 0:00:20.9]} 26... R8c7 {[%clk 0:00:48.7]} 27. Be4 {[%clk 0:00:15]} 27...
Re6 {[%clk 0:00:45.4]} 28. Bxb7 {[%clk 0:00:14.6]} 28... Rxb7 {[%clk 0:00:46.3]}
29. Rd2 {[%clk 0:00:10.2]} 29... Rbe7 {[%clk 0:00:40.4]} 30. Rf2 {[%clk
0:00:06.4]} 30... Re2 {[%clk 0:00:36.7]} 31. Rxf3 {[%clk 0:00:05.6]} 31... Rxh2
{[%clk 0:00:37.1]} 32. Rfg3 {[%clk 0:00:05.3]} 32... g6 {[%clk 0:00:34]} 33. Nc3
{[%clk 0:00:04.6]} 33... Bg7 {[%clk 0:00:33.6]} 34. Nd5 {[%clk 0:00:04.5]} 34...
Ree2 {[%clk 0:00:33.1]} 35. Bxg7 {[%clk 0:00:05.1]} 35... Kxg7 {[%clk
0:00:32.9]} 36. Rc3 {[%clk 0:00:05.7]} 36... Rd2 {[%clk 0:00:27.7]} 37. Nc7
{[%clk 0:00:06.2]} 37... Rhe2 {[%clk 0:00:24.4]} 38. Nxa6 {[%clk 0:00:06.2]}
38... f6 {[%clk 0:00:25]} 39. b4 {[%clk 0:00:05.5]} 39... g5 {[%clk 0:00:25.3]}
40. b5 {[%clk 0:00:05.9]} 40... Re5 {[%clk 0:00:24.9]} 41. Rb3 {[%clk
0:00:05.5]} 41... Ree2 {[%clk 0:00:23.9]} 42. Rc1 {[%clk 0:00:04.9]} 42... Re7
{[%clk 0:00:20.2]} 43. b6 {[%clk 0:00:05.5]} 43... Rb7 {[%clk 0:00:20.8]} 44.
Nc5 {[%clk 0:00:06.2]} 44... Rb8 {[%clk 0:00:21.4]} 45. b7 {[%clk 0:00:06.9]}
45... Kg6 {[%clk 0:00:19.5]} 46. Na6 {[%clk 0:00:07.4]} 46... Re8 {[%clk
0:00:19.5]} 47. b8=Q {[%clk 0:00:07.5]} 47... Rxb8 {[%clk 0:00:20.2]} 48. Nxb8
{[%clk 0:00:08.3]} 48... f5 {[%clk 0:00:21.1]} 49. Re1 {[%clk 0:00:08.3]} 49...
f4 {[%clk 0:00:22]} 50. Re6+ {[%clk 0:00:08.7]} 50... Kf5 {[%clk 0:00:21.9]} 51.
Rbb6 {[%clk 0:00:06.8]} 51... f3 {[%clk 0:00:22.1]} 52. Rf6+ {[%clk 0:00:05.9]}
52... Kg4 {[%clk 0:00:22.6]} 53. Rb4+ {[%clk 0:00:06]} 53... Kg3 {[%clk
0:00:23]} 54. Rb3 {[%clk 0:00:06.8]} 54... g4 {[%clk 0:00:23.3]} 55. Nd7 {[%clk
0:00:06.5]} 55... Rxd7 {[%clk 0:00:23.1]} 56. Rg6 {[%clk 0:00:05.8]} 56... Rd4
{[%clk 0:00:22.8]} 57. Kb2 {[%clk 0:00:02.1]} 57... Kf2 {[%clk 0:00:23.7]} 58.
Rd3 {[%clk 0:00:02]} 58... Rf4 {[%clk 0:00:24.2]} 59. Re3 {[%clk 0:00:02.2]}
59... Kxe3 {[%clk 0:00:23.6]} 0-1

[Event "Early-Titled-Tuesday-Blitz-July-09-2024"]
[Site "Chess.com"]
[Date "2024.07.09"]
[Round "2"]
[White "Barbix1"]
[Black "Antosha_Chekhonte"]
[Result "1-0"]
[WhiteElo "2367"]
[BlackElo "2522"]
[TimeControl "180+1"]
[EndTime "8:18:02 PDT"]
[Termination "Barbix1 won on time"]

1. d4 {[%clk 0:03:00.9]} 1... e6 {[%clk 0:02:59.6]} 2. Nf3 {[%clk 0:02:56.3]}
2... Nf6 {[%clk 0:02:59.4]} 3. c4 {[%clk 0:02:55.7]} 3... d5 {[%clk 0:02:57.8]}
4. g3 {[%clk 0:02:55.6]} 4... dxc4 {[%clk 0:02:57]} 5. Bg2 {[%clk 0:02:54.3]}
5... c5 {[%clk 0:02:56.8]} 6. O-O {[%clk 0:02:23.8]} 6... Nc6 {[%clk 0:02:57]}
7. dxc5 {[%clk 0:02:17.5]} 7... Qxd1 {[%clk 0:02:56]} 8. Rxd1 {[%clk 0:02:18.4]}
8... Bxc5 {[%clk 0:02:53.9]} 9. Nbd2 {[%clk 0:02:16.4]} 9... c3 {[%clk
0:02:53.5]} 10. bxc3 {[%clk 0:02:17.3]} 10... O-O {[%clk 0:02:52.8]} 11. Nb3
{[%clk 0:02:16.1]} 11... Be7 {[%clk 0:02:53.4]} 12. Nfd4 {[%clk 0:01:57.4]}
12... Nxd4 {[%clk 0:02:20.1]} 13. Nxd4 {[%clk 0:01:44.3]} 13... Nd5 {[%clk
0:02:03.7]} 14. Bb2 {[%clk 0:01:02.2]} 14... Rd8 {[%clk 0:02:02]} 15. Rac1
{[%clk 0:00:48.9]} 15... Nb6 {[%clk 0:01:50]} 16. Nb5 {[%clk 0:00:22.1]} 16...
Nc4 {[%clk 0:01:36.7]} 17. Ba1 {[%clk 0:00:21.9]} 17... Bd7 {[%clk 0:01:33]} 18.
Nd4 {[%clk 0:00:11.5]} 18... Rab8 {[%clk 0:01:30.7]} 19. Nb3 {[%clk 0:00:02.8]}
19... b6 {[%clk 0:01:28.2]} 20. Rd4 {[%clk 0:00:02.4]} 20... Rbc8 {[%clk
0:01:18.1]} 21. Rcd1 {[%clk 0:00:02.7]} 21... Be8 {[%clk 0:01:11.6]} 22. Bb7
{[%clk 0:00:02.2]} 22... Rxd4 {[%clk 0:01:05.4]} 23. Rxd4 {[%clk 0:00:03.1]}
23... Rc7 {[%clk 0:01:05.7]} 24. Ba6 {[%clk 0:00:03.4]} 24... Na3 {[%clk
0:01:00.5]} 25. Rd1 {[%clk 0:00:02.5]} 25... Kf8 {[%clk 0:00:50]} 26. e4 {[%clk
0:00:02.6]} 26... Bf6 {[%clk 0:00:48.5]} 27. f4 {[%clk 0:00:02.3]} 27... Bxc3
{[%clk 0:00:45.5]} 28. Rc1 {[%clk 0:00:02.8]} 28... Bxa1 {[%clk 0:00:24.3]} 29.
Rxc7 {[%clk 0:00:02.8]} 29... Bb2 {[%clk 0:00:22]} 30. Rxa7 {[%clk 0:00:02.9]}
30... Nb5 {[%clk 0:00:21.6]} 31. Ra8 {[%clk 0:00:03.2]} 31... Nc3 {[%clk
0:00:19.4]} 32. Bc4 {[%clk 0:00:02.6]} 32... b5 {[%clk 0:00:17.8]} 33. Bd3
{[%clk 0:00:02.9]} 33... Ke7 {[%clk 0:00:15.4]} 34. Nc5 {[%clk 0:00:03.2]} 34...
Bc1 {[%clk 0:00:10.2]} 35. Ra7+ {[%clk 0:00:03]} 35... Kd6 {[%clk 0:00:08]} 36.
Nb7+ {[%clk 0:00:02.8]} 36... Kc6 {[%clk 0:00:06]} 37. Ra8 {[%clk 0:00:03.2]}
37... Bd7 {[%clk 0:00:05.3]} 38. Na5+ {[%clk 0:00:03.6]} 38... Kb6 {[%clk
0:00:05.3]} 39. Nb3 {[%clk 0:00:03.2]} 39... Be3+ {[%clk 0:00:05.4]} 40. Kf1
{[%clk 0:00:03.5]} 40... Bc6 {[%clk 0:00:05.5]} 41. Rg8 {[%clk 0:00:03.6]} 41...
g6 {[%clk 0:00:04.2]} 42. Rf8 {[%clk 0:00:03.7]} 42... Nxe4 {[%clk 0:00:03.5]}
43. Bxe4 {[%clk 0:00:03.5]} 43... Bxe4 {[%clk 0:00:03.3]} 44. Rxf7 {[%clk
0:00:03.8]} 44... Kc6 {[%clk 0:00:02.8]} 45. Rxh7 {[%clk 0:00:03.6]} 45... Bb1
{[%clk 0:00:02.8]} 46. Ke2 {[%clk 0:00:02.5]} 46... Bb6 {[%clk 0:00:01.7]} 47.
Rh8 {[%clk 0:00:02.3]} 47... Bxa2 {[%clk 0:00:01]} 48. Nd2 {[%clk 0:00:03]} 1-0

[Event "Early-Titled-Tuesday-Blitz-July-09-2024"]
[Site "Chess.com"]
[Date "2024.07.09"]
[Round "2"]
[White "Timerkhanov"]
[Black "GHANDEEVAM2003"]
[Result "0-1"]
[WhiteElo "2682"]
[BlackElo "3183"]
[TimeControl "180+1"]
[EndTime "8:18:03 PDT"]
[Termination "GHANDEEVAM2003 won by checkmate"]

1. d4 {[%clk 0:03:00.9]} 1... Nf6 {[%clk 0:02:59.6]} 2. Bg5 {[%clk 0:03:01.3]}
2... b6 {[%clk 0:02:56.5]} 3. Nd2 {[%clk 0:03:01.4]} 3... Bb7 {[%clk 0:02:56.3]}
4. e3 {[%clk 0:02:57.4]} 4... g6 {[%clk 0:02:55.3]} 5. Bxf6 {[%clk 0:02:56.7]}
5... exf6 {[%clk 0:02:56.2]} 6. Ngf3 {[%clk 0:02:56.5]} 6... Bg7 {[%clk
0:02:55.3]} 7. c4 {[%clk 0:02:54.3]} 7... O-O {[%clk 0:02:55.1]} 8. g3 {[%clk
0:02:50.3]} 8... f5 {[%clk 0:02:46.9]} 9. Bg2 {[%clk 0:02:50.3]} 9... c5 {[%clk
0:02:47.5]} 10. O-O {[%clk 0:02:49]} 10... Re8 {[%clk 0:02:40.2]} 11. a4 {[%clk
0:02:46.5]} 11... Nc6 {[%clk 0:02:37.2]} 12. Nb3 {[%clk 0:02:42.4]} 12... d6
{[%clk 0:02:25.2]} 13. a5 {[%clk 0:02:36.3]} 13... Nb4 {[%clk 0:02:25.3]} 14.
Qd2 {[%clk 0:02:28.3]} 14... Qe7 {[%clk 0:02:16]} 15. Rfd1 {[%clk 0:02:26.2]}
15... Red8 {[%clk 0:02:08.7]} 16. h4 {[%clk 0:02:22.5]} 16... Rac8 {[%clk
0:02:06.5]} 17. axb6 {[%clk 0:02:20.5]} 17... axb6 {[%clk 0:02:07.4]} 18. Ra7
{[%clk 0:02:15.6]} 18... Nc6 {[%clk 0:02:07.2]} 19. Ra2 {[%clk 0:02:10.3]} 19...
h6 {[%clk 0:01:58]} 20. Ne1 {[%clk 0:01:55.3]} 20... h5 {[%clk 0:01:40]} 21. Nd3
{[%clk 0:01:26.9]} 21... cxd4 {[%clk 0:01:39.6]} 22. exd4 {[%clk 0:01:27.2]}
22... Nxd4 {[%clk 0:01:39.6]} 23. Nxd4 {[%clk 0:01:27.4]} 23... Bxd4 {[%clk
0:01:35.2]} 24. Ra7 {[%clk 0:01:27]} 24... Rd7 {[%clk 0:01:34.9]} 25. Bxb7
{[%clk 0:01:15.1]} 25... Rxb7 {[%clk 0:01:35.8]} 26. Rxb7 {[%clk 0:01:13.2]}
26... Qxb7 {[%clk 0:01:36.7]} 27. Nf4 {[%clk 0:01:13.6]} 27... Be5 {[%clk
0:01:36]} 28. b3 {[%clk 0:01:11.5]} 28... b5 {[%clk 0:01:28.1]} 29. Qd5 {[%clk
0:01:07.4]} 29... Qxd5 {[%clk 0:01:16.8]} 30. Nxd5 {[%clk 0:01:08.3]} 30... Rb8
{[%clk 0:01:14.7]} 31. Ne7+ {[%clk 0:01:08.4]} 31... Kg7 {[%clk 0:01:04.1]} 32.
Nc6 {[%clk 0:00:58.9]} 32... Rb6 {[%clk 0:01:04.2]} 33. Nxe5 {[%clk 0:00:58.7]}
33... dxe5 {[%clk 0:01:05.1]} 34. c5 {[%clk 0:00:59.3]} 34... Ra6 {[%clk
0:01:01.2]} 35. Rc1 {[%clk 0:00:43.7]} 35... Kf6 {[%clk 0:00:48.2]} 36. c6
{[%clk 0:00:40.9]} 36... Ra8 {[%clk 0:00:48.7]} 37. c7 {[%clk 0:00:39.5]} 37...
Rc8 {[%clk 0:00:48.1]} 38. Rc6+ {[%clk 0:00:38.6]} 38... Ke7 {[%clk 0:00:48.1]}
39. Rc5 {[%clk 0:00:39.2]} 39... Kd6 {[%clk 0:00:47.9]} 40. Rxb5 {[%clk
0:00:36.5]} 40... Rxc7 {[%clk 0:00:48.5]} 41. Kg2 {[%clk 0:00:35.3]} 41... e4
{[%clk 0:00:46.4]} 42. Rb6+ {[%clk 0:00:35.2]} 42... Ke5 {[%clk 0:00:42.6]} 43.
Rb8 {[%clk 0:00:31.9]} 43... Rc2 {[%clk 0:00:41.7]} 44. b4 {[%clk 0:00:31.1]}
44... Kf6 {[%clk 0:00:39.6]} 45. Kf1 {[%clk 0:00:29.5]} 45... Rb2 {[%clk
0:00:37.8]} 46. b5 {[%clk 0:00:29.1]} 46... f4 {[%clk 0:00:32.1]} 47. gxf4
{[%clk 0:00:19.7]} 47... Kf5 {[%clk 0:00:32.2]} 48. b6 {[%clk 0:00:08.3]} 48...
Kxf4 {[%clk 0:00:31.1]} 49. Rf8 {[%clk 0:00:06.2]} 49... f5 {[%clk 0:00:30.4]}
50. Rb8 {[%clk 0:00:03.4]} 50... Kf3 {[%clk 0:00:27.9]} 51. Kg1 {[%clk
0:00:03.6]} 51... Rb1+ {[%clk 0:00:26.6]} 52. Kh2 {[%clk 0:00:04]} 52... Kxf2
{[%clk 0:00:27.5]} 53. b7 {[%clk 0:00:04]} 53... e3 {[%clk 0:00:26.4]} 54. Rf8
{[%clk 0:00:02.1]} 54... Rxb7 {[%clk 0:00:26.4]} 55. Rg8 {[%clk 0:00:03]} 55...
e2 {[%clk 0:00:26.2]} 56. Rxg6 {[%clk 0:00:03.1]} 56... e1=Q {[%clk 0:00:25.3]}
57. Rg2+ {[%clk 0:00:04]} 57... Kf3 {[%clk 0:00:25.8]} 58. Rg1 {[%clk
0:00:02.9]} 58... Qxh4# {[%clk 0:00:25.6]} 0-1